[Event "SVK Amateur-ch 2020"]
[Site "Topolcany"]
[Date "2020.07.11"]
[Round "3.9"]
[White "Plasek, Zdenek"]
[Black "Wisniewski, Michal"]
[Result "0-1"]
[ECO "A05"]
[WhiteElo "1933"]
[BlackElo "2127"]
[Annotator "ChessBase"]
[PlyCount "120"]
[EventDate "2020.07.10"]
[EventType "swiss"]
[EventCountry "SVK"]
[SourceTitle "playchess.com"]
[Source "ChessBase"]
[SourceQuality "1"]
[TimeControl "3600+30"]

1. Nf3 {[%emt 0:00:00]} Nf6 {[%emt 0:00:00]} 2. b3 {[%emt 0:00:00]} d5 {[%emt 0:00:00]} 3. Bb2 {[%emt 0:00:00]} Bf5 {[%emt 0:00:00]} 4. e3 {[%emt 0:01:25]} e6 {[%emt 0:00:11]} 5. Bb5+ {[%emt 0:01:17]} c6 {[%emt 0:00:12]} 6. Be2 {[%emt 0:00:03]} Nbd7 {[%emt 0:00:21]} 7. O-O {[%emt 0:00:11]} a5 {[%emt 0:00:24]} 8. a4 {[%emt 0:11:19]} Be7 {[%emt 0:00:24]} 9. d3 {[%emt 0:02:13]} h6 {[%emt 0:00:05]} 10. Nbd2 {[%emt 0:00:42]} O-O {[%emt 0:00:05]} 11. Ne5 {[%emt 0:00:17]} Nxe5 {[%emt 0:01:09]} 12. Bxe5 {[%emt 0:00:02]} Nd7 {[%emt 0:00:05]} 13. Bb2 {[%emt 0:00:23]} e5 {[%emt 0:00:08]} 14. e4 {[%emt 0:00:35]} Be6 {[%emt 0:00:23]} 15. Bg4 {[%emt 0:01:59]} f5 {[%emt 0:00:38]} 16. exf5 {[%emt 0:00:26]} Bxf5 {[%emt 0:00:03]} 17. Ba3 {[%emt 0:13:30]} Bxa3 {[%emt 0:01:43]} 18. Rxa3 {[%emt 0:00:04]} Qe7 {[%emt 0:09:38]} 19. Ra1 {[%emt 0:10:08]} Bg6 {[%emt 0:00:55]} 20. Bxd7 {[%emt 0:00:12]} Qxd7 {[%emt 0:00:06]} 21. Qe2 {[%emt 0:05:39]} Rae8 {[%emt 0:01:52]} 22. Qe3 {[%emt 0:00:22]} Qe7 {[%emt 0:08:27]} 23. Qb6 {[%emt 0:02:51]} Qg5 {[%emt 0:02:54]} 24. Qe3 {[%emt 0:00:03]} Qg4 {[%emt 0:03:45]} 25. Qg3 {[%emt 0:01:58]} Qe2 {[%emt 0:01:31]} 26. Qe3 {[%emt 0:00:03]} Qg4 {[%emt 0:00:27]} 27. Qg3 {[%emt 0:00:02]} Qxg3 {[%emt 0:00:09]} 28. hxg3 {[%emt 0:00:03]} e4 {[%emt 0:00:03]} 29. dxe4 {[%emt 0:00:47]} Bxe4 {[%emt 0:00:04]} 30. Nxe4 {[%emt 0:04:07]} Rxe4 {[%emt 0:00:01]} 31. Rfe1 {[%emt 0:00:07]} Rfe8 {[%emt 0:00:04]} 32. Rxe4 {[%emt 0:00:08]} Rxe4 {[%emt 0:00:07]} 33. Kf1 {[%emt 0:00:19]} Kf7 {[%emt 0:00:02]} 34. f3 {[%emt 0:00:17]} Re5 {[%emt 0:00:04]} 35. Kf2 {[%emt 0:00:18]} Ke6 {[%emt 0:00:02]} 36. Rd1 {[%emt 0:05:18]} Kd6 {[%emt 0:01:47]} 37. g4 {[%emt 0:00:56]} Kc5 {[%emt 0:00:15]} 38. c3 {[%emt 0:00:05]} b5 {[%emt 0:00:33]} 39. Ra1 {[%emt 0:02:01]} b4 {[%emt 0:01:00]} 40. Rc1 {[%emt 0:00:05]} Re6 {[%emt 0:02:58]} 41. f4 {[%emt 0:05:46]} bxc3 {[%emt 0:00:09]} 42. Rxc3+ {[%emt 0:00:01]} Kb4 {[%emt 0:00:05]} 43. Rd3 {[%emt 0:00:17]} Rd6 {[%emt 0:01:25]} 44. Kf3 {[%emt 0:01:30]} c5 {[%emt 0:00:06]} 45. g5 {[%emt 0:00:19]} hxg5 {[%emt 0:00:11]} 46. f5 {[%emt 0:00:03]} d4 {[%emt 0:01:00]} 47. Kg4 {[%emt 0:01:16]} c4 {[%emt 0:00:21]} 48. bxc4 {[%emt 0:00:03]} Kxc4 {[%emt 0:00:02]} 49. Rd1 {[%emt 0:00:51]} d3 {[%emt 0:00:11]} 50. Kxg5 {[%emt 0:00:04]} d2 {[%emt 0:00:10]} 51. Kf4 {[%emt 0:00:53]} Kd3 {[%emt 0:00:08]} 52. Ke5 {[%emt 0:00:26]} Rb6 {[%emt 0:00:04]} 53. g4 {[%emt 0:00:23]} Kc2 {[%emt 0:00:06]} 54. Rf1 {[%emt 0:01:31]} d1=Q {[%emt 0:00:06]} 55. Rxd1 {[%emt 0:00:13]} Kxd1 {[%emt 0:00:04]} 56. g5 {[%emt 0:00:14]} Kc2 {[%emt 0:00:03]} 57. f6 {[%emt 0:00:34]} gxf6+ {[%emt 0:00:03]} 58. gxf6 {[%emt 0:00:04]} Rb8 {[%emt 0:00:03]} 59. f7 {[%emt 0:01:21]} Kb3 {[%emt 0:00:03]} 60. f8=Q Rxf8 {[%emt 0:00:07]} 0-1

[Event "SVK Amateur-ch 2020"]
[Site "Topolcany"]
[Date "2020.07.11"]
[Round "3.10"]
[White "Matis, Tibor"]
[Black "Joba, Arpad"]
[Result "1/2-1/2"]
[ECO "A00"]
[WhiteElo "1939"]
[BlackElo "2124"]
[Annotator "ChessBase"]
[PlyCount "57"]
[EventDate "2020.07.10"]
[EventType "swiss"]
[EventCountry "SVK"]
[SourceTitle "playchess.com"]
[Source "ChessBase"]
[SourceQuality "1"]
[TimeControl "3600+30"]

1. a3 {[%emt 0:00:00]} a6 {[%emt 0:00:27]} 2. h3 {[%emt 0:00:18]} Nf6 {[%emt 0:00:09]} 3. d4 {[%emt 0:01:03]} g6 {[%emt 0:00:28]} 4. Nc3 {[%emt 0:00:25]} Bg7 {[%emt 0:03:31]} 5. e4 {[%emt 0:03:01]} d6 {[%emt 0:00:20]} 6. Nf3 {[%emt 0:00:15]} O-O {[%emt 0:01:21]} 7. Be3 {[%emt 0:00:11]} b5 {[%emt 0:00:53]} 8. Bd3 {[%emt 0:00:17]} Bb7 {[%emt 0:00:10]} 9. O-O {[%emt 0:00:07]} Nbd7 {[%emt 0:00:35]} 10. Qd2 {[%emt 0:02:54]} c5 {[%emt 0:09:37]} 11. d5 {[%emt 0:04:38]} c4 {[%emt 0:03:26]} 12. Be2 {[%emt 0:00:08]} Nc5 {[%emt 0:00:05]} 13. Bxc5 {[%emt 0:00:05]} dxc5 {[%emt 0:00:04]} 14. Qe3 {[%emt 0:03:36]} Nd7 {[%emt 0:01:18]} 15. Rad1 {[%emt 0:06:59]} Rc8 {[%emt 0:02:14]} 16. e5 {[%emt 0:05:04]} b4 {[%emt 0:00:31]} 17. axb4 {[%emt 0:02:18]} cxb4 {[%emt 0:00:07]} 18. Nb1 {[%emt 0:03:32]} Nb6 {[%emt 0:06:22]} 19. d6 {[%emt 0:03:28]} Nd5 {[%emt 0:00:20]} 20. Rxd5 {[%emt 0:00:04]} Bxd5 {[%emt 0:00:32]} 21. Rd1 {[%emt 0:00:07]} e6 {[%emt 0:00:42]} 22. c3 {[%emt 0:00:55]} a5 {[%emt 0:00:49]} 23. Nd4 {[%emt 0:00:15]} f6 {[%emt 0:06:34]} 24. Bg4 {[%emt 0:04:21]} f5 {[%emt 0:01:53]} 25. Bf3 {[%emt 0:00:32]} Bxf3 {[%emt 0:02:41]} 26. Nxe6 {[%emt 0:05:12]} Bxd1 {[%emt 0:01:23]} 27. Nxd8 {[%emt 0:00:08]} Rcxd8 {[%emt 0:01:27]} 28. f4 {[%emt 0:00:31]} g5 {[%emt 0:03:23]} 29. g3 {[%emt 0:00:10]} 1/2-1/2

[Event "SVK Amateur-ch 2020"]
[Site "Topolcany"]
[Date "2020.07.11"]
[Round "3.10"]
[White "Skreko, Igor"]
[Black "Podoba, Milan"]
[Result "1-0"]
[ECO "D12"]
[WhiteElo "1761"]
[BlackElo "2023"]
[Annotator "RC"]
[PlyCount "155"]
[EventDate "2020.07.10"]
[EventType "swiss"]
[EventCountry "SVK"]
[SourceTitle "playchess.com"]
[Source "ChessBase"]
[SourceQuality "1"]
[TimeControl "3600+30"]

1. d4 {[%emt 0:00:00]} d5 {[%emt 0:00:00]} 2. c4 {[%emt 0:00:00]} c6 {[%emt 0:00:00]} 3. Nf3 {[%emt 0:00:00]} Nf6 {[%emt 0:00:00]} 4. e3 {[%emt 0:00:00]} Bf5 {[%emt 0:01:26]} 5. Nc3 {[%emt 0:00:08]} e6 {[%emt 0:00:08]} 6. Nh4 {[%emt 0:00:07]} Bg4 {[%emt 0:01:20]} 7. Qb3 {[%emt 0:00:41]} Qb6 {[%emt 0:00:48]} 8. h3 {[%emt 0:00:39]} Bh5 {[%emt 0:00:08]} 9. g4 {[%emt 0:00:11]} Bg6 {[%emt 0:00:05]} 10. Nxg6 {[%emt 0:00:17]} hxg6 {[%emt 0:00:02]} 11. Bg2 {[%emt 0:00:50]} Nbd7 {[%emt 0:01:15]} 12. Bd2 {[%emt 0:02:17]} Be7 {[%emt 0:01:32]} 13. c5 {[%emt 0:02:37]} Qxb3 {[%emt 0:03:33]} 14. axb3 {[%emt 0:00:06]} O-O {[%emt 0:00:10]} 15. b4 {[%emt 0:08:42]} b6 {[%emt 0:02:23]} 16. Ra6 {[%emt 0:03:38]} Rfb8 {[%emt 0:09:23]} 17. Ke2 {[%emt 0:09:54]} Rb7 {[%emt 0:12:18]} 18. Rha1 {[%emt 0:04:32]} Nb8 {[%emt 0:00:35]} 19. R6a2 {[%emt 0:00:15]} bxc5 {[%emt 0:04:01]} 20. bxc5 {[%emt 0:00:21]} a6 {[%emt 0:03:52]} 21. Kd1 {[%emt 0:05:27]} Bd8 {[%emt 0:03:40]} 22. Kc2 {[%emt 0:02:52]} Bc7 {[%emt 0:05:25]} 23. Bf1 {[%emt 0:02:39]} Rba7 {[%emt 0:03:47]} 24. b4 {[%emt 0:02:06]} Rb7 {[%emt 0:03:20]} 25. b5 {[%emt 0:03:06]} cxb5 {[%emt 0:01:30]} 26. Nxb5 {[%emt 0:00:30]} Ne4 {[%emt 0:04:21]} 27. Nxc7 {[%emt 0:02:19]} Rxc7 {[%emt 0:00:02]} 28. Be1 {[%emt 0:01:59]} Rca7 {[%emt 0:01:54]} 29. f3 {[%emt 0:02:15]} Nf6 {[%emt 0:00:02]} 30. Bb5 {[%emt 0:03:06]} Kh7 {[%emt 0:02:31]} 31. Bg3 {[%emt 0:02:12]} Nfd7 {[%emt 0:01:22]} 32. c6 {[%emt 0:01:01]} Nxc6 {[%emt 0:01:05]} 33. Bxc6 {[%emt 0:01:10]} Rc8 {[%emt 0:00:08]} 34. Rxa6 {[%emt 0:02:10]} Rxc6+ {[%emt 0:00:22]} 35. Rxc6 {[%emt 0:00:06]} Rxa1 {[%emt 0:00:04]} 36. Rc7 {[%emt 0:00:29]} Rg1 {[%emt 0:01:21]} 37. Bd6 {[%emt 0:03:36]} Nb6 {[%emt 0:00:48]} 38. Rxf7 {[%emt 0:00:25]} Nc4 {[%emt 0:00:16]} 39. Bf4 {[%emt 0:00:22]} g5 {[%emt 0:01:06]} 40. Be5 {[%emt 0:01:56]} Rg2+ {[%emt 0:00:44]} 41. Kd3 {[%emt 0:01:04]} Nxe5+ {[%emt 0:01:00]} 42. dxe5 {[%emt 0:00:05]} Rg3 {[%emt 0:00:23]} 43. Kd4 {[%emt 0:01:10]} Kg6 {[%emt 0:00:27]} 44. Rf8 {[%emt 0:00:58]} Rxh3 {[%emt 0:00:08]} 45. Kc5 {[%emt 0:00:14]} Rh1 {[%emt 0:02:17]} 46. Kd6 {[%emt 0:00:13]} Re1 {[%emt 0:00:31]} 47. Kxe6 {[%emt 0:00:07]} Rxe3 {[%emt 0:00:02]} 48. Kxd5 {[%emt 0:00:10]} Rd3+ {[%emt 0:00:14]} 49. Ke4 {[%emt 0:01:02]} Rd2 {[%emt 0:00:24]} 50. e6 {[%emt 0:00:28]} Ra2 {[%emt 0:00:57]} 51. Kd3 {[%emt 0:02:21]} Ra3+ {[%emt 0:00:43]} 52. Kc4 {[%emt 0:00:41]} Ra7 {[%emt 0:00:23]} 53. Rf5 {[%emt 0:00:59]} Ra6 {[%emt 0:00:53]} 54. Re5 {[%emt 0:00:55]} Ra8 {[%emt 0:00:49]} 55. e7 {[%emt 0:00:29]} Kf7 {[%emt 0:00:32]} 56. Rxg5 {[%emt 0:00:39]} Re8 {[%emt 0:00:46]} 57. Re5 {[%emt 0:00:24]} Rxe7 {[%emt 0:00:26]} 58. Rxe7+ {[%emt 0:00:05]} Kxe7 {[%emt 0:00:06]} 59. Kd5 {[%emt 0:00:09]} Kf6 {[%emt 0:00:06]} 60. f4 {[%emt 0:00:04]} Kf7 {[%emt 0:00:15]} 61. Ke5 {[%emt 0:00:16]} Ke7 {[%emt 0:00:12]} 62. f5 {[%emt 0:00:05]} Kf7 {[%emt 0:00:06]} 63. g5 {[%emt 0:00:16]} Kg8 {[%emt 0:01:49]} 64. Kd6 {[%emt 0:00:52]} Kf7 {[%emt 0:00:54]} 65. Kd7 {[%emt 0:00:12]} Kf8 {[%emt 0:00:42]} 66. Ke6 {[%emt 0:00:12]} Ke8 {[%emt 0:00:21]} 67. f6 {[%emt 0:00:57]} Kf8 {[%emt 0:00:32]} 68. f7 {[%emt 0:01:36]} g6 {[%emt 0:00:02]} 69. Kd6 {[%emt 0:00:06]} Kxf7 {[%emt 0:00:08]} 70. Kd7 {[%emt 0:00:03]} Kf8 {[%emt 0:01:21]} 71. Ke6 {[%emt 0:00:06]} Kg7 {[%emt 0:00:03]} 72. Ke7 {[%emt 0:00:03]} Kh8 {[%emt 0:01:05]} 73. Kf7 {[%emt 0:00:10]} Kh7 {[%emt 0:00:02]} 74. Kf6 {[%emt 0:00:05]} Kh8 {[%emt 0:00:12]} 75. Kxg6 {[%emt 0:00:07]} Kg8 {[%emt 0:00:01]} 76. Kh6 {[%emt 0:00:20]} Kh8 {[%emt 0:00:31]} 77. g6 {[%emt 0:00:08]} Kg8 {[%emt 0:00:05]} 78. g7 {[%emt 0:00:05]} 1-0

[Event "SVK Amateur-ch 2020"]
[Site "Topolcany"]
[Date "2020.07.11"]
[Round "3.11"]
[White "Fenik, Jozef ml."]
[Black "Blazek, Milos"]
[Result "1-0"]
[ECO "C28"]
[WhiteElo "2100"]
[BlackElo "1977"]
[Annotator "ChessBase"]
[PlyCount "67"]
[EventDate "2020.07.10"]
[EventType "swiss"]
[EventCountry "SVK"]
[SourceTitle "playchess.com"]
[Source "ChessBase"]
[SourceQuality "1"]
[TimeControl "3600+30"]

1. e4 {[%emt 0:00:00]} e5 {[%emt 0:00:52]} 2. Bc4 {[%emt 0:00:39]} Nf6 {[%emt 0:00:16]} 3. Nc3 {[%emt 0:00:31]} Nc6 {[%emt 0:00:49]} 4. d3 {[%emt 0:01:47]} Be7 {[%emt 0:04:01]} 5. f4 {[%emt 0:05:12]} d6 {[%emt 0:01:06]} 6. Nf3 {[%emt 0:00:43]} O-O {[%emt 0:01:08]} 7. f5 {[%emt 0:13:17]} Na5 {[%emt 0:04:33]} 8. Bg5 {[%emt 0:03:42]} c6 {[%emt 0:03:28]} 9. Qe2 {[%emt 0:04:05]} b5 {[%emt 0:07:38]} 10. Bb3 {[%emt 0:00:09]} Re8 {[%emt 0:06:03]} 11. O-O-O {[%emt 0:05:16]} Nxb3+ {[%emt 0:04:27]} 12. axb3 {[%emt 0:01:39]} b4 {[%emt 0:01:43]} 13. Na4 {[%emt 0:04:42]} Nd7 {[%emt 0:00:51]} 14. Bxe7 {[%emt 0:00:33]} Qxe7 {[%emt 0:00:29]} 15. g4 {[%emt 0:00:24]} Nb6 {[%emt 0:02:09]} 16. g5 {[%emt 0:00:58]} Rb8 {[%emt 0:09:06]} 17. h4 {[%emt 0:01:32]} Nxa4 {[%emt 0:01:00]} 18. bxa4 {[%emt 0:00:08]} b3 {[%emt 0:00:18]} 19. c3 {[%emt 0:08:01]} d5 {[%emt 0:00:46]} 20. h5 {[%emt 0:00:39]} d4 {[%emt 0:00:41]} 21. g6 {[%emt 0:05:21]} fxg6 {[%emt 0:02:14]} 22. hxg6 {[%emt 0:03:59]} h6 {[%emt 0:01:27]} 23. Qd2 {[%emt 0:00:09]} dxc3 {[%emt 0:01:39]} 24. Qxc3 {[%emt 0:00:39]} Qb4 {[%emt 0:04:36]} 25. Qxb4 {[%emt 0:03:16]} Rxb4 {[%emt 0:00:08]} 26. Kd2 {[%emt 0:00:11]} Ba6 {[%emt 0:03:42]} 27. Kc3 {[%emt 0:01:15]} c5 {[%emt 0:00:39]} 28. Ra1 {[%emt 0:00:44]} Rb6 {[%emt 0:04:39]} 29. Nd2 {[%emt 0:03:15]} Rd8 {[%emt 0:01:07]} 30. Nc4 {[%emt 0:00:38]} Bxc4 {[%emt 0:00:38]} 31. dxc4 {[%emt 0:00:13]} Rd4 {[%emt 0:00:13]} 32. Rad1 {[%emt 0:00:30]} Rb4 {[%emt 0:00:07]} 33. Rxd4 {[%emt 0:00:31]} cxd4+ {[%emt 0:01:00]} 34. Kxb4 1-0

[Event "SVK Amateur-ch 2020"]
[Site "Topolcany"]
[Date "2020.07.11"]
[Round "3.12"]
[White "Vargyas, Zoltan"]
[Black "Tatliak, Stefan"]
[Result "1-0"]
[ECO "D07"]
[WhiteElo "2023"]
[BlackElo "1704"]
[Annotator "ChessBase"]
[PlyCount "47"]
[EventDate "2020.07.10"]
[EventType "swiss"]
[EventCountry "SVK"]
[SourceTitle "playchess.com"]
[Source "ChessBase"]
[SourceQuality "1"]
[TimeControl "3600+30"]

1. Nf3 {[%emt 0:00:00]} d5 {[%emt 0:01:20]} 2. c4 {[%emt 0:00:00]} e6 {[%emt 0:02:58]} 3. d4 {[%emt 0:00:56]} Nf6 {[%emt 0:00:28]} 4. Nc3 {[%emt 0:00:37]} Nc6 {[%emt 0:02:41]} 5. Bf4 {[%emt 0:02:37]} a6 {[%emt 0:06:57]} 6. e3 {[%emt 0:02:59]} Be7 {[%emt 0:04:32]} 7. h3 {[%emt 0:02:13]} O-O {[%emt 0:00:56]} 8. a3 {[%emt 0:01:45]} dxc4 {[%emt 0:08:58]} 9. Bxc4 {[%emt 0:00:09]} b5 {[%emt 0:02:28]} 10. Bd3 {[%emt 0:01:26]} b4 {[%emt 0:03:38]} 11. Ne4 {[%emt 0:01:59]} Nd5 {[%emt 0:00:41]} 12. Bg3 {[%emt 0:06:30]} f5 {[%emt 0:07:54]} 13. Ned2 {[%emt 0:08:02]} Bd7 {[%emt 0:08:37]} 14. e4 {[%emt 0:05:06]} Nb6 {[%emt 0:05:53]} 15. Qb3 {[%emt 0:03:44]} f4 {[%emt 0:02:21]} 16. Bh2 {[%emt 0:03:02]} Kh8 {[%emt 0:01:48]} 17. O-O {[%emt 0:02:57]} Qe8 {[%emt 0:03:07]} 18. Rfc1 {[%emt 0:04:43]} Qh5 {[%emt 0:01:21]} 19. Be2 {[%emt 0:03:25]} Qh6 {[%emt 0:00:29]} 20. axb4 {[%emt 0:00:39]} a5 {[%emt 0:01:25]} 21. b5 {[%emt 0:01:24]} a4 {[%emt 0:00:21]} 22. Qc2 {[%emt 0:01:40]} Nb4 {[%emt 0:00:57]} 23. Qxc7 {[%emt 0:00:21]} Bd8 {[%emt 0:00:19]} 24. Qd6 {[%emt 0:00:57]} 1-0

[Event "SVK Amateur-ch 2020"]
[Site "Topolcany"]
[Date "2020.07.11"]
[Round "3.13"]
[White "Frink, Ferenc"]
[Black "Skrinar, Marek"]
[Result "1-0"]
[ECO "C24"]
[WhiteElo "2075"]
[BlackElo "1668"]
[Annotator "ChessBase"]
[PlyCount "69"]
[EventDate "2020.07.10"]
[EventType "swiss"]
[EventCountry "SVK"]
[SourceTitle "playchess.com"]
[Source "ChessBase"]
[SourceQuality "1"]
[TimeControl "3600+30"]

1. e4 {[%emt 0:02:18]} e5 {[%emt 0:00:00]} 2. Bc4 {[%emt 0:04:44]} Nf6 {[%emt 0:02:20]} 3. d3 {[%emt 0:00:32]} h6 {[%emt 0:02:21]} 4. Nf3 {[%emt 0:00:29]} Nc6 {[%emt 0:01:35]} 5. O-O {[%emt 0:02:49]} Bc5 {[%emt 0:01:49]} 6. c3 {[%emt 0:05:22]} Qe7 {[%emt 0:07:24]} 7. d4 {[%emt 0:02:59]} Bb6 {[%emt 0:00:30]} 8. d5 {[%emt 0:03:30]} Nb8 {[%emt 0:00:33]} 9. Qd3 {[%emt 0:04:20]} d6 {[%emt 0:01:20]} 10. h3 {[%emt 0:00:13]} g5 {[%emt 0:06:40]} 11. Nxg5 {[%emt 0:14:05]} hxg5 {[%emt 0:02:31]} 12. Bxg5 {[%emt 0:02:27]} Rg8 {[%emt 0:02:08]} 13. h4 {[%emt 0:00:23]} Rxg5 {[%emt 0:01:47]} 14. hxg5 {[%emt 0:00:02]} Ng4 {[%emt 0:00:24]} 15. Qh3 {[%emt 0:03:11]} Qxg5 {[%emt 0:03:41]} 16. Be2 {[%emt 0:06:28]} Ke7 {[%emt 0:06:02]} 17. g3 {[%emt 0:03:15]} Nxf2 {[%emt 0:01:28]} 18. Qh4 {[%emt 0:00:18]} Nxe4+ {[%emt 0:10:52]} 19. Kg2 {[%emt 0:00:23]} Nd7 {[%emt 0:05:13]} 20. Qxe4 {[%emt 0:00:32]} Nf6 {[%emt 0:01:04]} 21. Qh4 {[%emt 0:01:39]} Qg7 {[%emt 0:00:13]} 22. Nd2 {[%emt 0:00:23]} Bh3+ {[%emt 0:02:44]} 23. Qxh3 {[%emt 0:00:30]} Nxd5 {[%emt 0:00:12]} 24. Qh4+ {[%emt 0:03:29]} f6 {[%emt 0:00:23]} 25. Nc4 {[%emt 0:00:56]} Nf4+ {[%emt 0:02:21]} 26. Rxf4 {[%emt 0:01:04]} exf4 {[%emt 0:02:06]} 27. Qxf4 {[%emt 0:00:02]} Qh7 {[%emt 0:01:48]} 28. Nxb6 {[%emt 0:01:05]} axb6 {[%emt 0:00:21]} 29. Re1 {[%emt 0:00:22]} Qg7 {[%emt 0:03:11]} 30. Qc4 {[%emt 0:02:43]} Kf8 {[%emt 0:01:05]} 31. Bh5 {[%emt 0:00:43]} c6 {[%emt 0:00:38]} 32. Qe6 {[%emt 0:00:09]} Qh7 {[%emt 0:00:38]} 33. Qxf6+ {[%emt 0:00:19]} Kg8 {[%emt 0:00:13]} 34. Bg6 {[%emt 0:00:30]} Qg7 {[%emt 0:00:21]} 35. Qe6+ {[%emt 0:00:11]} 1-0

[Event "SVK Amateur-ch 2020"]
[Site "Topolcany"]
[Date "2020.07.11"]
[Round "3.13"]
[White "Kukan, Michal"]
[Black "Osmanovic, Faruk"]
[Result "1-0"]
[ECO "D10"]
[WhiteElo "1760"]
[BlackElo "1999"]
[Annotator "ChessBase"]
[PlyCount "111"]
[EventDate "2020.07.10"]
[EventType "swiss"]
[EventCountry "SVK"]
[SourceTitle "playchess.com"]
[Source "ChessBase"]
[SourceQuality "1"]
[TimeControl "3600+30"]

1. c4 {[%emt 0:00:00]} c6 {[%emt 0:00:00]} 2. d4 {[%emt 0:00:21]} d5 {[%emt 0:00:00]} 3. Nc3 {[%emt 0:00:13]} Nf6 {[%emt 0:00:00]} 4. h3 {[%emt 0:00:30]} Bf5 {[%emt 0:00:01]} 5. cxd5 {[%emt 0:00:43]} cxd5 {[%emt 0:00:05]} 6. Bf4 {[%emt 0:01:11]} Nc6 {[%emt 0:00:05]} 7. Nf3 {[%emt 0:00:39]} Rc8 {[%emt 0:00:19]} 8. Nh4 {[%emt 0:00:35]} Bd7 {[%emt 0:00:25]} 9. e3 {[%emt 0:01:28]} e6 {[%emt 0:00:02]} 10. Be2 {[%emt 0:02:54]} Be7 {[%emt 0:00:01]} 11. O-O {[%emt 0:00:28]} Ne4 {[%emt 0:00:35]} 12. Nf3 {[%emt 0:01:34]} g5 {[%emt 0:01:58]} 13. Bh2 {[%emt 0:02:10]} Nxc3 {[%emt 0:08:50]} 14. bxc3 {[%emt 0:00:07]} Qa5 {[%emt 0:00:04]} 15. Qb3 {[%emt 0:01:38]} b6 {[%emt 0:02:39]} 16. Rfc1 {[%emt 0:02:38]} Qa3 {[%emt 0:01:09]} 17. Rc2 {[%emt 0:05:45]} Qa5 {[%emt 0:05:05]} 18. Ne5 {[%emt 0:02:59]} Nxe5 {[%emt 0:00:12]} 19. Bxe5 {[%emt 0:00:06]} f6 {[%emt 0:00:15]} 20. Bh5+ {[%emt 0:24:33]} Kd8 {[%emt 0:03:53]} 21. Bg3 {[%emt 0:02:17]} Ba4 {[%emt 0:01:54]} 22. Qb2 {[%emt 0:01:32]} Bxc2 {[%emt 0:00:07]} 23. Qxc2 {[%emt 0:00:15]} Qxc3 {[%emt 0:00:11]} 24. Qd1 {[%emt 0:00:45]} Qc2 {[%emt 0:01:38]} 25. Qf1 {[%emt 0:01:55]} Qb2 {[%emt 0:04:32]} 26. a4 {[%emt 0:02:14]} Ba3 {[%emt 0:00:55]} 27. Kh2 {[%emt 0:01:19]} Ke7 {[%emt 0:06:39]} 28. Qa6 {[%emt 0:03:10]} Bd6 {[%emt 0:00:53]} 29. Rf1 {[%emt 0:03:42]} Bxg3+ {[%emt 0:01:34]} 30. fxg3 {[%emt 0:00:04]} Rc7 {[%emt 0:00:07]} 31. Qd3 {[%emt 0:02:27]} Qc2 {[%emt 0:02:16]} 32. Qa3+ {[%emt 0:00:35]} Kd7 {[%emt 0:04:41]} 33. Rxf6 {[%emt 0:00:13]} Qc1 {[%emt 0:02:55]} 34. Qd3 {[%emt 0:01:59]} Qc4 {[%emt 0:01:01]} 35. Qa3 {[%emt 0:01:11]} Qc3 {[%emt 0:02:44]} 36. Rf7+ {[%emt 0:00:30]} Kc8 {[%emt 0:00:11]} 37. Qd6 {[%emt 0:01:59]} Rxf7 {[%emt 0:08:17]} 38. Bxf7 {[%emt 0:00:22]} Rd8 {[%emt 0:01:06]} 39. Bxe6+ {[%emt 0:00:16]} Kb7 {[%emt 0:00:12]} 40. Qxd8 {[%emt 0:00:17]} Ka6 {[%emt 0:00:07]} 41. Bxd5 {[%emt 0:00:17]} Qxe3 {[%emt 0:00:10]} 42. Bc4+ {[%emt 0:00:45]} Ka5 {[%emt 0:00:04]} 43. Qd7 {[%emt 0:00:41]} a6 {[%emt 0:00:24]} 44. Qb7 {[%emt 0:00:45]} Qxd4 {[%emt 0:00:12]} 45. Qxa6+ {[%emt 0:00:12]} Kb4 {[%emt 0:00:01]} 46. Qb5+ {[%emt 0:00:32]} Kc3 {[%emt 0:00:09]} 47. Qb3+ {[%emt 0:00:25]} Kd2 {[%emt 0:00:00]} 48. Bf1 {[%emt 0:00:39]} h6 {[%emt 0:01:00]} 49. Qa2+ {[%emt 0:00:24]} Kc1 {[%emt 0:00:18]} 50. Bb5 {[%emt 0:00:43]} Qd6 {[%emt 0:00:46]} 51. Qc4+ {[%emt 0:00:33]} Kb2 {[%emt 0:00:11]} 52. Qe2+ {[%emt 0:00:34]} Kc1 {[%emt 0:00:45]} 53. Qd3 {[%emt 0:00:20]} Qf6 {[%emt 0:00:13]} 54. Bc4 {[%emt 0:00:23]} Qc6 {[%emt 0:03:30]} 55. Qc3+ {[%emt 0:00:37]} Kd1 {[%emt 0:00:08]} 56. Be2+ {[%emt 0:00:07]} 1-0

[Event "SVK Amateur-ch 2020"]
[Site "Topolcany"]
[Date "2020.07.11"]
[Round "3.14"]
[White "Panda, Barnabas"]
[Black "Kucera, Michal"]
[Result "0-1"]
[ECO "E32"]
[WhiteElo "1741"]
[BlackElo "1978"]
[Annotator "ChessBase"]
[PlyCount "88"]
[EventDate "2020.07.10"]
[EventType "swiss"]
[EventCountry "SVK"]
[SourceTitle "playchess.com"]
[Source "ChessBase"]
[SourceQuality "1"]
[TimeControl "3600+30"]

1. d4 {[%emt 0:00:00]} Nf6 {[%emt 0:00:00]} 2. c4 {[%emt 0:00:00]} e6 {[%emt 0:00:00]} 3. Nc3 {[%emt 0:00:04]} Bb4 {[%emt 0:00:00]} 4. Qc2 {[%emt 0:00:22]} O-O {[%emt 0:02:59]} 5. a3 {[%emt 0:01:58]} Bxc3+ {[%emt 0:00:22]} 6. Qxc3 {[%emt 0:00:12]} d6 {[%emt 0:01:27]} 7. Nf3 {[%emt 0:01:44]} Nbd7 {[%emt 0:03:27]} 8. e3 {[%emt 0:05:50]} b6 {[%emt 0:02:38]} 9. b4 {[%emt 0:03:22]} c5 {[%emt 0:02:04]} 10. Bb2 {[%emt 0:03:18]} Ne4 {[%emt 0:02:57]} 11. Qc2 {[%emt 0:01:19]} Bb7 {[%emt 0:00:52]} 12. Bd3 {[%emt 0:02:28]} f5 {[%emt 0:01:05]} 13. O-O {[%emt 0:02:31]} Qe7 {[%emt 0:02:04]} 14. Rfd1 {[%emt 0:06:47]} Rac8 {[%emt 0:07:20]} 15. dxc5 {[%emt 0:06:07]} dxc5 {[%emt 0:00:53]} 16. Bxe4 {[%emt 0:03:19]} Bxe4 {[%emt 0:01:32]} 17. Qa4 {[%emt 0:00:37]} Nf6 {[%emt 0:07:40]} 18. Ne5 {[%emt 0:03:44]} Rfd8 {[%emt 0:05:07]} 19. f3 {[%emt 0:03:07]} Ba8 {[%emt 0:01:19]} 20. Rac1 {[%emt 0:01:12]} Rc7 {[%emt 0:10:51]} 21. Rxd8+ {[%emt 0:03:02]} Qxd8 {[%emt 0:00:01]} 22. Rd1 {[%emt 0:00:14]} Qe7 {[%emt 0:01:40]} 23. Rd2 {[%emt 0:01:44]} Rc8 {[%emt 0:07:03]} 24. Nd7 {[%emt 0:05:03]} Bc6 {[%emt 0:00:36]} 25. Qxa7 {[%emt 0:01:51]} Nxd7 {[%emt 0:05:28]} 26. b5 {[%emt 0:00:11]} Bxb5 {[%emt 0:00:33]} 27. cxb5 {[%emt 0:00:12]} Rd8 {[%emt 0:00:13]} 28. Be5 {[%emt 0:02:06]} Kf7 {[%emt 0:01:13]} 29. Bc7 {[%emt 0:01:20]} Rc8 {[%emt 0:00:44]} 30. Qb7 {[%emt 0:01:45]} Re8 {[%emt 0:00:42]} 31. Bd6 {[%emt 0:00:40]} Qd8 {[%emt 0:00:17]} 32. Bf8 {[%emt 0:00:47]} Kxf8 {[%emt 0:00:24]} 33. Rxd7 {[%emt 0:00:43]} Qf6 {[%emt 0:00:12]} 34. Qxb6 {[%emt 0:01:08]} Qa1+ {[%emt 0:00:30]} 35. Kf2 {[%emt 0:00:06]} Qb2+ {[%emt 0:00:12]} 36. Kg3 {[%emt 0:00:25]} Qe5+ {[%emt 0:00:10]} 37. Kh3 {[%emt 0:00:41]} Qxe3 {[%emt 0:00:12]} 38. Qd6+ {[%emt 0:00:50]} Kg8 {[%emt 0:00:14]} 39. a4 {[%emt 0:00:54]} g5 {[%emt 0:00:18]} 40. Qd2 {[%emt 0:01:20]} g4+ {[%emt 0:00:37]} 41. Kh4 {[%emt 0:00:55]} Qe5 {[%emt 0:02:31]} 42. Qg5+ {[%emt 0:00:27]} Kh8 {[%emt 0:00:10]} 43. Qh6 {[%emt 0:00:23]} Qxh2+ {[%emt 0:00:14]} 44. Kg5 {[%emt 0:00:20]} Rg8+ {[%emt 0:00:10]} 0-1